bitfinex/quotes_ETHUSD_20250822
["timestamp","ask_amount","ask_price","bid_price","bid_amount"]
[1755897600195,1.71,4868.6,4868.4,0.2906232]
[1755897600395,0.002,4869.4,4868.6,30.0]
[1755897600616,0.002,4869.4,4869.3,0.4056]
[1755897600825,3.939,4869.4,4869.3,0.2906232]
[1755897602420,4.6774,4869.4,4869.3,0.2906232]
[1755897602818,4.2292,4869.4,4869.3,0.2906232]
[1755897603028,3.939,4869.4,4869.3,0.2906232]
[1755897603636,0.002,4869.4,4869.3,33.11558689]
[1755897603824,0.002,4869.6,4869.3,7.98546195]
[1755897604132,0.002,4869.6,4869.5,2.53288243]
[1755897604307,3.937,4869.6,4869.5,33.02430563]
[1755897604513,3.937,4869.6,4869.5,30.95329091]
[1755897605119,3.937,4869.6,4869.5,22.41759091]
[1755897605319,3.937,4869.6,4869.5,30.49140928]
[1755897605534,3.937,4869.6,4869.5,30.95310928]
[1755897606101,3.937,4869.6,4869.5,30.49140928]
[1755897606331,3.937,4869.6,4869.5,33.01945286]
[1755897606641,3.6903537,4869.6,4869.5,33.01945286]
[1755897606931,3.6903537,4869.6,4869.5,13.72945286]
[1755897607135,3.6903537,4869.6,4869.5,13.61945286]
[1755897607333,3.6903537,4869.6,4869.5,33.01945286]
[1755897607632,3.6903537,4869.6,4869.5,15.40840928]
[1755897607835,4.4287537,4869.6,4869.5,0.18820928]
[1755897608203,3.931,4869.6,4869.5,6.10540928]
[1755897608408,3.931,4869.6,4869.5,30.49140928]
[1755897609306,0.02,4869.8,4869.5,30.95310928]
[1755897609516,0.02,4869.8,4869.6,30.18820928]
[1755897609706,0.02,4869.8,4869.7,0.18820928]
[1755897610306,0.02,4869.8,4869.7,30.49140928]
[1755897610534,1.71,4871.0,4870.2,12.76800576]
[1755897610702,1.71,4871.0,4869.8,30.0]
[1755897610703,1.71,4871.0,4870.3,22.89121504]
[1755897610907,1.71,4871.0,4870.7,0.3032]
[1755897611142,1.709,4872.3,4871.4,0.66]
[1755897611327,5.637,4872.3,4871.7,0.3032]
[1755897611541,5.637,4872.3,4871.7,30.51193599]
[1755897611847,3.928,4872.9,4872.1,1.238]
[1755897612142,3.928,4872.9,4871.8,30.0]
[1755897612143,3.928,4872.9,4872.2,30.18820928]
[1755897612304,3.928,4872.9,4872.3,30.18820928]
[1755897612509,3.928,4872.9,4872.2,0.616238]
[1755897612510,3.928,4872.9,4872.4,30.49140928]
[1755897612808,3.928,4872.9,4872.4,30.18820928]
[1755897613318,3.928,4872.9,4872.4,30.64743305]
[1755897613519,3.928,4872.9,4872.4,30.45922377]
[1755897613845,3.928,4872.9,4872.4,30.74872982]
[1755897614013,3.928,4872.9,4872.4,30.74883442]
[1755897614538,1.711,4873.4,4872.4,30.74873238]
[1755897614740,3.925,4873.1,4872.4,30.74873238]
[1755897615242,3.925,4873.1,4872.4,43.51673814]
[1755897615429,3.925,4873.1,4872.4,43.97843814]
[1755897616148,3.925,4873.1,4872.4,44.63843814]
[1755897616711,3.70252189,4873.1,4872.4,43.41433814]
[1755897616915,3.70252189,4873.1,4873.0,0.1024]
[1755897617221,1.711,4873.4,4873.0,30.59270861]
[1755897617437,1.711,4873.4,4873.1,29.93710861]
[1755897617635,1.711,4873.4,4873.3,0.1024]
[1755897617838,1.711,4873.4,4873.3,0.28950861]
[1755897618036,0.002,4873.5,4873.3,13.27883434]
[1755897618238,0.002,4873.5,4873.4,1.27730861]
[1755897618551,0.002,4873.5,4873.4,31.56310861]
[1755897618755,0.002,4873.5,4873.4,9.89690861]
[1755897619460,0.002,4873.5,4873.4,9.61110861]
[1755897619638,0.002,4873.5,4873.4,30.18710861]
[1755897619824,0.002,4873.5,4873.4,30.47290861]
[1755897620422,0.439,4874.3,4873.4,30.18710861]
[1755897620627,1.046,4874.3,4873.5,30.18710861]
[1755897620862,0.439,4874.3,4873.6,27.59362732]
[1755897621153,0.439,4874.3,4873.7,0.18710861]
[1755897621367,0.439,4874.3,4873.8,0.18710861]
[1755897621573,3.922,4874.4,4873.9,0.18710861]
[1755897621783,3.922,4874.4,4873.6,0.616123]
[1755897621784,0.3052,4874.0,4873.6,0.616123]
[1755897621993,0.3052,4874.0,4872.8,10.0]
[1755897621994,0.3052,4874.0,4873.7,0.18650544]
[1755897622145,0.439,4873.9,4873.8,0.18650544]
[1755897622341,0.7442,4873.9,4873.8,0.18650544]
[1755897622544,0.7442,4873.9,4872.6,10.0]
[1755897622545,0.7442,4873.9,4871.6,12.76800576]
[1755897622883,0.439,4873.8,4871.7,11.76853661]
[1755897623184,3.917,4873.7,4871.8,30.1865843]
[1755897623386,0.4356,4873.6,4871.9,30.1865843]
[1755897623585,0.8746,4873.6,4872.0,0.1865843]
[1755897623795,0.439,4873.5,4872.8,0.02]
[1755897623969,0.439,4873.5,4872.9,0.1865843]
[1755897624169,0.439,4873.5,4873.0,0.1865843]
[1755897624374,0.439,4873.4,4873.1,0.1865843]
[1755897624569,0.5651,4874.4,4872.8,0.02]
[1755897624570,0.3052,4873.2,4872.8,0.02]
[1755897624791,2.0132,4873.2,4872.9,0.18670381]
[1755897625080,0.439,4873.1,4873.0,0.18670381]
[1755897625291,0.7442,4873.1,4873.0,0.18670381]
[1755897626791,1.79449585,4873.1,4873.0,0.18670381]
[1755897626994,0.66,4873.0,4870.5,0.15702501]
[1755897627290,0.66,4872.8,4870.5,0.15702501]
[1755897627455,0.66,4872.8,4870.6,0.02053135]
[1755897627660,3.914,4872.7,4870.6,0.02053135]
[1755897627862,0.66,4872.6,4870.5,0.616496]
[1755897628187,0.1024,4872.0,4871.3,0.1024]
[1755897628389,0.3052,4871.4,4871.3,0.1024]
[1755897628590,2.0132,4871.4,4871.3,0.1024]
[1755897628894,2.4522,4871.4,4871.3,0.1024]
[1755897630359,2.20557908,4871.4,4871.3,0.1024]
[1755897631799,2.20557908,4871.4,4870.2,0.616518]
[1755897632093,2.20557908,4871.4,4871.1,0.1024]
[1755897632296,1.76657908,4871.4,4871.1,0.1024]
[1755897632456,0.439,4871.3,4871.1,0.1024]
[1755897632661,3.911,4871.2,4871.1,0.1024]
[1755897632859,4.3188,4871.2,4871.1,0.1024]
[1755897633068,4.92148,4871.2,4871.1,0.1024]
[1755897633311,4.92148,4871.2,4869.8,0.02]
[1755897633465,0.1024,4871.0,4870.3,0.1024]
[1755897633663,0.3032,4870.9,4870.3,0.1024]
[1755897633885,0.4079,4870.9,4870.3,0.1024]
[1755897634797,0.910298,4870.9,4870.3,0.1024]
[1755897634960,1.570298,4870.9,4869.8,0.02]
[1755897636587,0.910298,4870.9,4869.8,0.02]
[1755897636793,4.4193,4870.9,4869.8,0.1224]
[1755897637195,4.4193,4870.9,4869.8,0.1234]
[1755897637813,5.0793,4870.9,4869.8,0.1234]
[1755897637975,5.0793,4870.9,4869.8,0.021]
[1755897638807,5.0793,4870.9,4870.8,0.20794621]
[1755897640530,4.3118,4870.9,4870.8,0.20794621]
[1755897640731,4.3118,4870.9,4870.8,0.20781798]
[1755897641103,4.803248,4870.9,4870.8,0.20781798]
[1755897641621,5.463248,4870.9,4870.8,0.20781798]
[1755897645928,2.83,4870.6,4870.3,0.001]
[1755897646105,3.0,4870.3,4869.8,0.021]
[1755897646305,0.9652,4869.9,4869.8,0.02]
[1755897646539,6.5762,4869.9,4869.8,0.02]
[1755897646835,0.66,4869.8,4868.8,0.02]
[1755897647001,0.9434,4868.9,4868.8,0.02]
[1755897647319,4.561,4868.9,4868.8,0.02]
[1755897647925,3.901,4868.9,4868.8,0.02]
[1755897648122,3.901,4868.9,4868.8,0.3058]
[1755897648310,3.901,4868.9,4868.8,0.7498]
[1755897648623,3.65424584,4868.9,4868.8,0.7498]
[1755897649122,3.9,4868.9,4868.8,0.7498]
[1755897650430,3.9,4868.9,4868.8,0.8522]
[1755897654896,3.9,4868.9,4868.8,0.02]
[1755897654897,4.9538,4868.9,4868.8,0.02]
[1755897655134,5.4354,4868.9,4868.8,0.02]
[1755897657921,5.4354,4868.9,4868.8,0.20888317]
[1755897659119,5.4354,4868.9,4868.8,0.20889855]
[1755897660364,5.18860326,4868.9,4868.8,0.20889855]
[1755897660515,1.5354,4868.9,4868.8,0.20889855]
[1755897660719,4.6582,4868.9,4868.8,0.20889855]
[1755897661051,0.7624,4868.9,4868.8,0.20889855]
[1755897661378,3.9944,4868.9,4868.8,0.20889855]
[1755897661514,3.9944,4868.9,4868.8,0.49409855]
[1755897661836,3.9944,4868.9,4868.8,0.20889855]
[1755897662832,3.9944,4868.9,4868.8,0.93809855]
[1755897663035,3.891,4868.9,4868.8,0.93809855]
[1755897663342,3.891,4868.9,4868.8,0.93909855]
[1755897663746,3.891,4868.9,4868.8,1.04149855]
[1755897663963,3.891,4868.9,4868.8,1.04147241]
[1755897664824,3.39757785,4868.9,4868.8,1.04147241]
[1755897665024,0.002,4869.8,4868.9,31.238]
[1755897665226,1.709,4869.9,4869.7,0.2852]
[1755897665464,0.002,4870.3,4869.9,23.887]
[1755897665640,0.002,4870.3,4870.0,6.08487241]
[1755897665841,0.002,4870.3,4870.2,1.6256]
[1755897666063,3.89,4870.3,4870.2,31.81447241]
[1755897666250,3.89,4870.3,4870.2,32.25847241]
[1755897666944,3.89,4870.3,4870.2,31.02047241]
[1755897667258,3.89,4870.3,4870.2,31.02012241]
[1755897667462,3.89,4870.3,4870.2,31.01999285]
[1755897667629,3.89,4870.3,4870.2,7.30159285]
[1755897667830,3.89,4870.3,4870.2,6.85559285]
[1755897668249,3.89,4870.3,4870.2,4.05059285]
[1755897668451,0.002,4870.3,4870.2,4.05059285]
[1755897668962,0.002,4870.3,4870.2,30.93812588]
[1755897669265,0.002,4870.3,4870.2,30.91759285]
[1755897669576,0.02,4870.8,4870.3,0.66]
[1755897669774,3.887,4871.3,4871.0,12.76806966]
[1755897669928,3.887,4871.3,4871.2,0.2852]
[1755897670125,0.002,4871.3,4871.2,30.47322809]
[1755897670326,3.885,4871.7,4871.2,30.47322809]
[1755897670327,3.64244924,4871.7,4871.2,47.20491929]
[1755897670563,3.64244924,4871.7,4871.3,0.63202809]
[1755897670747,3.64244924,4871.7,4871.6,0.2852]
[1755897671036,3.64244924,4871.7,4871.6,0.47322809]
[1755897671461,3.64244924,4871.7,4871.6,0.18802809]
[1755897673156,3.64244924,4871.7,4871.6,0.47286679]
[1755897673669,3.882,4871.7,4871.6,30.91686679]
[1755897674534,0.002,4872.4,4871.6,30.91686679]
[1755897674737,3.882,4872.4,4871.9,30.0]
[1755897674934,3.882,4872.4,4871.4,0.10125885]
[1755897674935,3.882,4872.4,4872.3,0.2852]
[1755897675235,3.882,4872.4,4872.3,30.91686679]
[1755897675431,1.709,4873.3,4872.3,30.91686679]
[1755897675670,3.88,4873.2,4873.1,16.7316912]
[1755897675838,1.709,4874.4,4873.1,47.64855799]
[1755897676040,3.879,4873.6,4873.2,30.0]
[1755897676335,3.879,4873.6,4873.3,0.47215019]
[1755897676650,3.879,4873.6,4873.3,30.91615019]
[1755897677662,3.879,4873.6,4873.3,31.01855019]
[1755897678683,1.709,4874.4,4873.3,31.01855019]
[1755897678853,1.709,4874.4,4874.3,16.8340912]
[1755897679177,1.709,4874.4,4874.3,17.1224912]
[1755897679357,1.709,4874.4,4874.3,17.77143036]
[1755897679758,1.709,4874.4,4874.3,47.77143036]
[1755897680348,2.4728,4874.4,4872.6,0.4625]
[1755897680554,1.0109,4874.3,4872.7,23.53268568]
[1755897680755,1.0109,4874.3,4873.0,16.7316912]
[1755897681076,1.0109,4874.3,4873.1,22.667]
[1755897681286,0.5586,4874.3,4873.3,0.001]
[1755897681485,1.709,4874.4,4873.7,16.7316912]
[1755897681685,0.02,4874.8,4874.3,0.2884]
[1755897681857,3.874,4874.7,4873.9,4.28051745]
[1755897682058,3.874,4874.7,4874.0,14.26]
[1755897682260,3.874,4874.7,4873.3,0.001]
[1755897682261,0.002,4873.9,4873.3,0.001]
[1755897682461,5.582,4873.8,4873.3,16.75321117]
[1755897682664,5.582,4873.8,4873.7,0.2884]
[1755897683676,0.002,4873.9,4873.8,30.0]
[1755897683855,0.002,4873.9,4873.8,30.7509]
[1755897685165,0.002,4873.9,4873.8,30.2884]
[1755897685373,0.002,4873.9,4873.8,30.7509]
[1755897685887,0.002,4873.9,4873.8,7.579957]
[1755897686073,3.87,4874.1,4873.8,7.579957]
[1755897686273,3.87,4874.1,4874.0,16.7316912]
[1755897686475,3.87,4874.1,4874.0,47.4825912]
[1755897687393,3.87,4874.1,4873.8,0.02]
[1755897688179,0.3115,4873.9,4873.8,0.02]
[1755897688705,0.7638,4873.9,4873.8,0.02]
[1755897689264,1.22718,4873.9,4873.8,0.02]
[1755897689475,1.88718,4873.9,4873.8,0.02]
[1755897690359,1.98958,4873.9,4873.8,0.02]
[1755897690987,1.32958,4873.9,4873.8,0.02]
[1755897691187,5.19558,4873.9,4873.8,0.02]
[1755897692005,5.19558,4873.9,4873.3,0.001]
[1755897692163,1.053458,4873.8,4873.3,0.001]
[1755897692363,5.09318,4873.9,4873.4,7.18714932]
[1755897692364,0.1024,4873.7,4873.4,7.18714932]
[1755897692570,5.339,4874.0,4873.5,0.28954932]
[1755897692787,3.864,4873.9,4873.6,0.18714932]
[1755897692995,3.864,4873.9,4873.7,0.18714932]
[1755897693282,3.864,4873.9,4873.8,0.18714932]
[1755897693503,5.339,4874.0,4873.8,0.47554932]
[1755897693819,0.02,4874.8,4873.9,0.18714932]
[1755897694015,3.863,4874.7,4874.0,0.18714932]
[1755897694218,3.863,4874.7,4874.0,0.02051702]
[1755897694425,3.863,4874.7,4874.6,0.1024]
[1755897694582,3.863,4874.7,4874.6,0.28976257]
[1755897695608,0.02,4874.8,4874.6,1.04066257]
[1755897695811,0.02,4874.8,4874.7,0.64986257]
[1755897696022,0.02,4874.8,4874.7,0.93826257]
[1755897696315,0.4523,4877.3,4874.7,30.93826257]
[1755897696523,0.02,4877.8,4874.7,30.93826257]
[1755897696524,3.862,4875.7,4875.2,13.07318408]
[1755897696735,3.862,4875.7,4875.6,0.2884]
[1755897696912,3.862,4875.7,4875.6,30.57816257]
[1755897697222,1.728,4876.8,4875.7,24.906]
[1755897697428,0.02,4876.8,4875.7,31.59813744]
[1755897698183,0.02,4876.8,4875.7,30.93813744]
[1755897699021,0.002,4876.7,4875.7,30.93813744]
[1755897699206,0.002,4876.7,4875.7,8.25013744]
[1755897699380,0.002,4876.7,4876.6,13.73318408]
[1755897699723,0.002,4876.7,4876.6,0.18723744]
[1755897700123,0.002,4876.7,4876.6,0.28963744]
[1755897700289,0.002,4876.7,4876.6,44.01132152]
[1755897700490,0.02,4876.8,4876.7,0.66]
[1755897700684,0.02,4877.8,4877.5,13.07318408]
[1755897700887,0.02,4877.8,4877.6,0.18723744]
[1755897701195,0.02,4877.8,4877.7,30.28963744]
[1755897701458,0.02,4877.8,4877.7,0.90523744]
[1755897701640,0.02,4877.8,4877.7,0.28963744]
[1755897701839,0.3315,4877.8,4877.7,0.28963744]
[1755897702120,0.7838,4877.8,4877.7,0.18723744]
[1755897703620,0.7838,4877.8,4875.9,13.53568408]
[1755897703621,0.66,4877.7,4874.6,0.4625]
[1755897703801,0.66,4877.1,4875.8,0.1024]
[1755897703998,0.3115,4875.9,4875.8,0.1024]
[1755897704209,4.1665,4875.9,4874.3,0.09934856]
[1755897704515,4.1665,4875.9,4875.8,0.02]
[1755897704905,4.6188,4875.9,4875.8,0.02]
[1755897705233,0.1024,4876.2,4875.9,30.0]
[1755897705419,0.1024,4876.2,4876.1,0.2884]
[1755897705624,0.1024,4876.2,4876.1,30.9484]
[1755897705789,3.854,4877.7,4876.2,0.66]
[1755897705984,3.854,4877.7,4877.6,0.1024]
[1755897706321,0.02,4877.8,4877.7,30.0]
[1755897706519,5.561,4878.1,4877.7,30.4625]
[1755897706732,1.707,4879.4,4878.0,0.1024]
[1755897706891,3.873,4878.8,4878.1,30.0]
[1755897707086,3.873,4878.8,4878.2,13.55618344]
[1755897707087,0.02,4878.8,4878.2,13.55618344]
[1755897707400,0.02,4878.8,4878.7,0.1024]
[1755897707921,0.02,4878.8,4878.7,24.9024]
[1755897708103,0.02,4878.8,4878.7,30.1024]
[1755897708306,0.02,4879.8,4878.8,30.66]
[1755897708512,4.2895,4879.7,4878.0,0.53777998]
[1755897708740,0.53335,4879.6,4878.9,0.1024]
[1755897708918,0.02,4879.8,4879.5,0.1024]
[1755897709316,0.02,4879.8,4879.7,0.1024]
[1755897709645,3.872,4879.8,4879.7,0.1024]
[1755897710129,3.62582364,4879.8,4879.7,0.1024]
[1755897710931,0.1024,4880.6,4879.7,30.1024]
[1755897711144,3.851,4879.9,4879.0,13.07318408]
[1755897711298,3.85,4879.8,4878.2,13.07318408]
[1755897711536,3.85,4879.7,4878.3,30.4405]
[1755897711739,3.85,4879.7,4878.4,30.0]
[1755897712037,3.85,4879.7,4879.6,0.1024]
[1755897712251,0.66,4879.6,4877.2,0.4405]
[1755897712436,0.66,4879.4,4876.6,0.4405]
[1755897712637,0.66,4879.2,4877.0,0.615641]
[1755897712859,0.66,4879.0,4877.0,0.615641]
[1755897713046,0.66,4878.8,4877.0,0.615641]
[1755897713264,0.66,4878.6,4877.0,0.615641]
[1755897713468,0.66,4878.6,4875.8,0.02]
[1755897713772,0.66,4878.4,4875.9,30.615786]
[1755897713951,0.66,4878.4,4876.0,30.0]
[1755897714138,0.4375,4878.3,4876.0,30.0]
[1755897714336,0.76975,4878.2,4876.0,30.0]
[1755897714559,0.4375,4878.1,4876.8,0.001]
[1755897714762,0.66,4878.0,4876.8,0.001]
[1755897714983,1.706,4877.9,4876.8,0.001]
[1755897715145,2.1435,4877.9,4876.8,0.001]
[1755897715354,0.728825,4877.8,4876.8,0.001]
[1755897715574,3.848,4877.7,4876.9,0.18634675]
[1755897715778,1.0975,4877.6,4877.0,0.18634675]
[1755897716099,1.0975,4877.6,4876.8,0.001]
[1755897716100,0.66,4877.4,4877.1,0.18634675]
[1755897716263,5.994,4877.3,4877.2,0.18634675]
[1755897716452,6.4315,4877.3,4877.2,0.18634675]
[1755897716986,0.66,4877.2,4876.8,0.001]
[1755897717188,0.66,4877.2,4876.9,0.18663498]
[1755897717189,1.0975,4877.2,4876.9,0.18663498]
[1755897717372,1.0975,4877.1,4877.0,0.18663498]
[1755897717574,1.85241825,4877.1,4877.0,0.18663498]
[1755897717896,1.85241825,4877.1,4872.3,0.001]
[1755897717897,0.66,4877.0,4873.2,0.186635]
[1755897718103,3.66,4876.8,4873.2,0.186635]
[1755897718456,0.66,4876.6,4873.2,0.186635]
[1755897718790,0.66,4876.4,4872.3,0.001]
[1755897719165,0.66,4876.2,4872.3,0.001]
[1755897719489,0.66,4876.0,4873.2,13.07318408]
[1755897719799,0.66,4876.0,4873.3,0.08315]
[1755897719964,0.66,4875.8,4873.3,0.001]
[1755897720154,0.66,4875.6,4873.7,0.4405]
[1755897720353,1.08463063,4875.6,4873.4,10.0]
[1755897720692,1.707,4876.5,4874.8,0.4605]
[1755897720896,3.845,4876.4,4874.8,0.4605]
[1755897721065,3.845,4876.3,4874.8,0.4605]
[1755897721397,10.0,4877.8,4874.8,0.4605]
[1755897721398,0.4375,4877.6,4874.9,30.02051324]
[1755897721552,1.707,4876.2,4875.0,30.46101282]
[1755897721757,1.707,4876.2,4875.1,30.4405]
[1755897721954,1.707,4876.2,4875.2,30.46101197]
[1755897722158,1.707,4876.2,4876.1,0.1024]
[1755897722360,1.707,4876.2,4876.1,30.5429]
[1755897722558,1.707,4876.2,4876.1,6.5649]
[1755897723002,1.707,4876.2,4876.1,30.5429]
[1755897723384,1.707,4876.2,4876.1,0.1024]
[1755897723764,2.8021,4876.2,4875.3,0.1024]
[1755897724468,0.1024,4875.7,4875.0,0.1024]
[1755897724672,0.1024,4875.7,4874.8,0.02]
[1755897724673,3.844,4875.6,4874.8,0.02]
[1755897724983,0.1024,4875.3,4874.8,0.02]
[1755897725492,3.844,4875.6,4874.9,0.4405]
[1755897725699,3.844,4875.6,4875.2,0.1024]
[1755897725898,3.844,4875.6,4875.5,0.1024]
[1755897726200,0.66,4877.1,4875.5,0.1024]
[1755897726201,0.4375,4878.8,4875.6,30.66]
[1755897726402,4.2805,4878.0,4877.0,0.1024]
[1755897726576,0.1024,4877.1,4876.4,0.1024]
[1755897726983,0.1024,4877.7,4876.2,0.4405]
[1755897727183,3.843,4877.6,4876.2,0.4405]
[1755897727398,3.843,4877.6,4876.9,0.1024]
[1755897727763,3.843,4877.6,4876.2,0.4405]
[1755897727966,3.843,4877.5,4877.1,0.1024]
[1755897728193,3.843,4877.4,4877.1,0.1024]
[1755897728394,3.843,4877.4,4875.7,0.4405]
[1755897728694,0.02,4876.8,4876.7,0.1024]
[1755897728897,0.02,4876.8,4874.8,0.02]
[1755897728898,0.4575,4876.8,4874.8,0.02]
[1755897729096,0.66,4876.7,4874.8,0.02]
[1755897729394,3.842,4876.6,4874.8,0.02]
[1755897729591,1.707,4876.5,4875.7,0.1024]
[1755897729797,0.1024,4876.3,4875.7,0.1024]
[1755897729999,0.1024,4876.0,4875.8,0.18727298]
[1755897730199,2.37365,4876.5,4875.9,0.18727298]
[1755897730395,2.37365,4876.5,4875.4,0.001]
[1755897730396,0.66,4876.2,4876.0,0.18727298]
[1755897730600,0.66,4876.2,4876.1,0.18727298]
[1755897730776,2.37365,4876.5,4876.1,0.18727298]
[1755897730977,0.1024,4876.4,4876.2,0.18727298]
[1755897731180,0.1024,4876.4,4876.3,0.18727298]
[1755897731789,3.841,4876.4,4876.3,0.18727298]
[1755897734611,4.3978,4876.4,4876.3,0.18727298]
[1755897734772,5.4953,4876.4,4876.3,0.18727298]
[1755897735404,4.8353,4876.4,4876.3,0.18727298]
[1755897735705,5.4953,4876.4,4876.3,0.1872523]
[1755897736205,5.4933,4876.4,4876.3,0.1872523]
[1755897738176,1.707,4876.5,4876.3,0.1872523]
[1755897738416,1.707,4876.5,4876.4,0.1872523]
[1755897738593,5.545,4876.5,4875.4,0.001]
[1755897738795,0.66,4876.4,4875.5,0.18744519]
[1755897739007,0.66,4876.2,4875.6,0.18744519]
[1755897739309,0.4481,4876.3,4875.4,0.001]
[1755897739310,0.66,4876.0,4875.7,0.18748864]
[1755897739506,5.996,4875.9,4875.8,0.1875959]
[1755897739708,5.336,4875.9,4875.8,0.1875959]
[1755897739908,9.174,4875.9,4875.8,0.1875959]
[1755897740084,3.59158526,4875.9,4875.8,0.6540959]
[1755897740289,1.707,4876.5,4875.8,30.6540959]
[1755897740511,3.838,4876.4,4875.9,0.1875959]
[1755897740811,3.838,4876.4,4876.0,0.1875959]
[1755897740982,3.838,4876.4,4876.1,0.67460409]
[1755897741180,0.02,4876.8,4876.1,0.67460409]
[1755897741181,0.02,4876.8,4876.4,30.0]
[1755897741393,3.838,4876.6,4876.5,0.20810241]
[1755897741678,0.02,4876.8,4876.5,30.6540959]
[1755897741906,3.857,4876.8,4876.6,30.20810199]
[1755897742105,0.02,4876.8,4876.7,30.1875959]
[1755897742310,0.02,4876.8,4876.7,30.6540959]
[1755897742487,0.02,4876.8,4876.7,21.9990959]
[1755897742679,0.02,4876.8,4876.7,20.9990959]
[1755897743515,0.02,4876.8,4876.7,8.8650959]
[1755897744017,0.02,4876.8,4876.7,30.6540959]
[1755897744215,7.043,4878.7,4876.7,30.7528834]
[1755897744516,7.043,4878.7,4876.9,13.07318408]
[1755897744812,3.836,4878.6,4878.5,0.1024]
[1755897745015,3.836,4878.6,4878.5,0.1875959]
[1755897745214,3.836,4878.6,4878.5,0.2899959]
[1755897745607,1.707,4878.7,4878.5,0.2899959]
[1755897745807,1.707,4878.7,4878.6,0.1875959]
[1755897746010,5.543,4878.7,4878.6,0.6540959]
[1755897746213,1.707,4878.7,4878.6,0.6540959]
[1755897746426,5.542,4878.7,4878.6,0.6540959]
[1755897747026,1.707,4878.7,4878.6,0.6540959]
[1755897747196,5.542,4878.7,4878.6,0.6540959]
[1755897747600,5.542,4878.7,4877.7,0.4665]
[1755897747930,5.542,4878.7,4877.8,0.18722143]
[1755897748100,1.707,4878.7,4877.9,0.18722143]
[1755897748303,3.834,4878.6,4878.0,0.18723492]
[1755897748501,3.834,4878.6,4878.1,0.18723492]
[1755897748693,0.4481,4878.5,4878.2,0.18723492]
[1755897748898,3.834,4878.6,4878.3,0.18723492]
[1755897748899,0.4481,4878.4,4878.3,0.18723492]
[1755897749094,0.4481,4878.6,4878.3,0.18723492]
[1755897749308,1.707,4878.7,4878.4,0.1873253]
[1755897749521,3.833,4878.6,4878.5,0.1873253]
[1755897750030,3.833,4878.6,4878.5,0.6538253]
[1755897750194,3.34057281,4878.6,4878.5,0.1873253]
[1755897750395,3.34057281,4878.6,4878.5,0.6538253]
[1755897752429,3.34057281,4878.6,4878.5,0.1873253]
[1755897752640,0.002,4879.6,4878.5,0.6538253]
[1755897752823,0.002,4879.6,4878.7,13.07318408]
[1755897753028,3.832,4879.5,4878.8,30.1873253]
[1755897753233,3.832,4879.5,4878.9,30.1873253]
[1755897753536,3.832,4879.5,4879.0,30.1873253]
[1755897753835,0.002,4879.6,4879.1,30.6538253]
[1755897754043,3.831,4879.5,4879.2,30.1873253]
[1755897754234,3.831,4879.5,4879.3,30.6538253]
[1755897754400,3.831,4879.5,4879.4,30.6538253]
[1755897754606,3.831,4879.5,4879.4,27.9713253]
[1755897754814,3.831,4879.5,4879.4,0.1873253]
[1755897755405,4.2791,4879.5,4879.4,0.1873253]
[1755897755634,4.87991,4879.5,4879.4,0.1873253]
[1755897755813,1.15131,4879.5,4879.4,0.1873253]
[1755897756012,4.3805,4879.5,4879.4,0.1873253]
[1755897756815,3.83,4879.5,4879.4,0.18680019]
[1755897757107,0.002,4879.6,4878.5,0.4665]
[1755897757305,3.83,4879.5,4879.4,0.1024]
[1755897757521,3.83,4879.5,4879.4,0.28916221]
[1755897758707,4.2781,4879.5,4879.4,0.18676221]
[1755897759611,4.2781,4879.5,4879.1,0.1024]
[1755897759810,4.2781,4879.5,4879.2,0.18665916]
[1755897760026,4.2781,4879.5,4879.3,0.18665916]
[1755897760363,0.002,4879.6,4879.4,0.18665916]
[1755897760517,3.828,4879.5,4879.1,0.1024]
[1755897760722,4.2761,4879.5,4879.2,0.18669124]
[1755897760948,4.2761,4879.5,4879.3,0.18669124]
[1755897761147,0.002,4879.6,4879.4,0.18669124]
[1755897761361,0.002,4879.6,4879.5,0.18669124]
[1755897761535,4.5661,4879.6,4879.5,0.18669124]
[1755897761934,5.20565,4879.6,4879.5,0.18669124]
[1755897762134,5.20565,4879.6,4877.1,0.29014081]
[1755897762135,0.66,4879.5,4877.7,0.1024]
[1755897762348,0.1024,4879.2,4878.6,0.001]
[1755897762524,0.4481,4879.4,4878.6,0.001]
[1755897762525,0.948,4878.7,4878.6,0.001]
[1755897762730,4.8774,4878.7,4878.6,0.18798801]
[1755897762931,0.66,4878.6,4878.1,0.001]
[1755897763130,1.0504,4878.2,4878.1,0.001]
[1755897763351,10.2104,4878.2,4878.1,0.001]
[1755897763557,10.6585,4878.2,4878.1,0.001]
[1755897764142,9.9985,4878.2,4878.1,0.001]
[1755897764363,9.2624,4878.2,4878.1,0.001]
[1755897765060,5.4354,4878.2,4878.1,0.001]
[1755897765358,9.2614,4878.2,4878.1,0.001]
[1755897766226,9.159,4878.2,4878.1,0.001]
[1755897768035,11.65454,4878.2,4878.1,0.001]
[1755897768276,11.75694,4878.2,4878.1,0.001]
[1755897768633,0.002,4879.6,4878.1,43.84578408]
[1755897768959,3.825,4879.5,4878.1,13.84578408]
[1755897769135,3.825,4879.5,4878.2,0.458]
[1755897769338,3.825,4879.5,4878.3,40.02049894]